fUSD/lending_fUSD_20240712
["ID","MTS","AMOUNT","RATE_DAILY","PERIOD"]
[331778312,1720759865355,-500.0,0.00013894,2]
[331778313,1720759865365,-500.0,0.00013894,2]
[331778314,1720759865375,-500.0,0.00013894,2]
[331778315,1720759865385,-500.0,0.00013894,2]
[331778316,1720759865395,-500.0,0.00013894,2]
[331778317,1720759865405,-886.41,0.00013894,2]
[331778318,1720759865415,-500.0,0.00013894,2]
[331778319,1720759865424,-500.0,0.00013894,2]
[331778320,1720759865434,-500.0,0.00013894,2]
[331778321,1720759865444,-500.0,0.00013894,2]
[331778322,1720759865454,-500.0,0.00013894,2]
[331778323,1720759865463,-500.0,0.00013894,2]
[331778324,1720759865472,-229.2563097,0.00013894,2]
[331778325,1720759865482,-759.93,0.00013894,2]
[331778326,1720759865491,-500.0,0.00013894,2]
[331778327,1720759865501,-500.0,0.00013894,2]
[331778328,1720759865512,-1235.91,0.00013894,2]
[331778329,1720759865522,-3362.49,0.00013894,2]
[331778330,1720759865531,-836.61,0.00013894,2]
[331778331,1720759865541,-500.0,0.00013894,2]
[331778332,1720759865550,-1042.44,0.00013894,2]
[331778333,1720759865560,-563.37,0.00013894,2]
[331778334,1720759865570,-500.0,0.00013894,2]
[331778335,1720759865581,-500.0,0.00013894,2]
[331778336,1720759865592,-500.0,0.00013894,2]
[331778337,1720759865602,-500.0,0.00013894,2]
[331778338,1720759865612,-500.0,0.00013894,2]
[331778339,1720759865622,-500.0,0.00013894,2]
[331778340,1720759865637,-545.04,0.00013894,2]
[331778341,1720759865646,-500.0,0.00013894,2]
[331778342,1720759865657,-8559.36,0.00013894,2]
[331778343,1720759865667,-500.0,0.00013894,2]
[331778344,1720759865678,-624.84,0.00013894,2]
[331778345,1720759865690,-2180.07,0.00013894,2]
[331778346,1720759865703,-1313.65,0.00013894,2]
[331778347,1720759865713,-500.0,0.00013894,2]
[331778348,1720759865724,-500.0,0.00013894,2]
[331778349,1720759865736,-500.0,0.00013894,2]
[331778350,1720759865746,-198.58656565,0.00013894,2]
[331778351,1720759865755,-626.69767379,0.00013894,2]
[331778352,1720759865766,-500.0,0.00013894,2]
[331778353,1720759865775,-500.0,0.00013894,2]
[331778354,1720759865784,-4280.06,0.00013894,2]
[331778355,1720759865795,-579.67804295,0.00013894,2]
[331778356,1720759865804,-500.0,0.00013895,2]
[331778357,1720759865814,-500.0,0.00013895,2]
[331778358,1720759865823,-745.74,0.00013895,2]
[331778359,1720759865835,-500.0,0.00013895,2]
[331778360,1720759865844,-500.0,0.00013895,2]
[331778361,1720759865854,-500.0,0.00013895,2]
[331778362,1720759865863,-733.12,0.00013895,2]
[331778363,1720759865873,-500.0,0.00013895,2]
[331778364,1720759865882,-633.22520418,0.00013895,2]
[331778365,1720759865892,-500.0,0.00013895,2]
[331778366,1720759865902,-500.0,0.00013895,2]
[331778367,1720759865911,-500.0,0.00013895,2]
[331778368,1720759865920,-500.0,0.00013895,2]
[331778369,1720759865930,-500.0,0.00013895,2]
[331778370,1720759865939,-500.0,0.00013895,2]
[331778371,1720759865949,-500.0,0.00013895,2]
[331778372,1720759865958,-500.0,0.00013895,2]
[331778373,1720759865968,-500.0,0.00013895,2]
[331778374,1720759865977,-598.09,0.00013895,2]
[331778375,1720759865987,-500.0,0.00013895,2]
[331778376,1720759865996,-781.65,0.00013895,2]
[331778377,1720759866006,-500.0,0.00013895,2]
[331778378,1720759866016,-416.91733253,0.00013895,2]
[331778379,1720759866026,-500.0,0.00013895,2]
[331778380,1720759866035,-500.0,0.00013895,2]
[331778381,1720759866045,-500.0,0.00013895,2]
[331778382,1720759866054,-500.0,0.00013895,2]
[331778383,1720759866064,-500.0,0.00013895,2]
[331778384,1720759866074,-500.0,0.00013895,2]
[331778385,1720759866083,-500.0,0.00013895,2]
[331778386,1720759866092,-653.74,0.00013895,2]
[331778387,1720759866102,-500.0,0.00013895,2]
[331778388,1720759866112,-500.0,0.00013895,2]
[331778389,1720759866122,-500.0,0.00013895,2]
[331778390,1720759866131,-635.52,0.00013895,2]
[331778391,1720759866141,-170.23,0.00013895,2]
[331778392,1720759866151,-500.0,0.00013895,2]
[331778393,1720759866161,-500.0,0.00013895,2]
[331778394,1720759866170,-982.18,0.00013895,2]
[331778395,1720759866180,-500.0,0.00013895,2]
[331778396,1720759866190,-500.0,0.00013895,2]
[331778397,1720759866200,-500.0,0.00013895,2]
[331778398,1720759866210,-337.15,0.00013895,2]
[331778399,1720759866222,-724.95,0.00013895,2]
[331778400,1720759866232,-763.86,0.00013895,2]
[331778401,1720759866243,-500.0,0.00013895,2]
[331778402,1720759866252,-500.0,0.00013895,2]
[331778403,1720759866263,-500.0,0.00013895,2]
[331778404,1720759866272,-1501.52,0.00013895,2]
[331778405,1720759866282,-610.55,0.00013895,2]
[331778406,1720759866292,-500.0,0.00013895,2]
[331778407,1720759866301,-636.62,0.00013895,2]
[331778408,1720759866310,-500.0,0.00013895,2]
[331778409,1720759866320,-640.82,0.00013895,2]
[331778410,1720759866329,-510.88,0.00013895,2]
[331778411,1720759866339,-500.0,0.00013895,2]
[331778412,1720759866349,-680.06,0.00013895,2]
[331778413,1720759866358,-500.0,0.00013895,2]
[331778414,1720759866367,-528.42,0.00013895,2]
[331778415,1720759866376,-500.0,0.00013895,2]
[331778416,1720759866386,-689.67,0.00013895,2]
[331778417,1720759866395,-500.0,0.00013895,2]
[331778418,1720759866404,-500.0,0.00013895,2]
[331778419,1720759866415,-1063.91,0.00013895,2]
[331778420,1720759866424,-500.0,0.00013895,2]
[331778421,1720759866433,-500.0,0.00013895,2]
[331778422,1720759866442,-500.0,0.00013895,2]
[331778423,1720759866452,-500.0,0.00013895,2]
[331778424,1720759866463,-500.0,0.00013895,2]
[331778425,1720759866473,-500.0,0.00013895,2]
[331778426,1720759866482,-500.0,0.00013895,2]
[331778427,1720759866492,-650.69,0.00013895,2]
[331778428,1720759866502,-500.0,0.00013895,2]
[331778429,1720759866511,-976.16,0.00013895,2]
[331778430,1720759866521,-754.23,0.00013895,2]
[331778431,1720759866531,-647.56,0.00013895,2]
[331778432,1720759866541,-537.55,0.00013895,2]
[331778433,1720759866551,-755.08,0.00013895,2]
[331778434,1720759866561,-500.0,0.00013895,2]
[331778435,1720759866570,-548.63,0.00013895,2]
[331778436,1720759866580,-724.37,0.00013895,2]
[331778437,1720759866590,-590.93,0.00013895,2]
[331778438,1720759866600,-825.43,0.00013895,2]
[331778439,1720759866609,-575.53,0.00013895,2]
[331778440,1720759866619,-500.0,0.00013895,2]
[331778441,1720759866631,-534.42,0.00013895,2]
[331778442,1720759866640,-892.36,0.00013895,2]
[331778443,1720759866650,-500.0,0.00013895,2]
[331778444,1720759866659,-525.0,0.00013895,2]
[331778445,1720759866668,-1043.24,0.00013895,2]
[331778446,1720759866678,-500.0,0.00013895,2]
[331778447,1720759866687,-523.37,0.00013895,2]
[331778448,1720759866697,-1341.32,0.00013895,2]
[331778449,1720759866708,-613.3,0.00013895,2]
[331778450,1720759866718,-500.0,0.00013895,2]
[331778451,1720759866728,-500.0,0.00013895,2]
[331778452,1720759866737,-1325.0,0.00013895,2]
[331778453,1720759866747,-571.92,0.00013895,2]
[331778454,1720759866757,-500.0,0.00013895,2]
[331778455,1720759866767,-500.0,0.00013895,2]
[331778456,1720759866777,-500.0,0.00013895,2]
[331778457,1720759866787,-588.96,0.00013895,2]
[331778458,1720759866796,-846.71,0.00013895,2]
[331778459,1720759866805,-760.57,0.00013895,2]
[331778460,1720759866815,-500.0,0.00013895,2]
[331778461,1720759866825,-500.0,0.00013895,2]
[331778462,1720759866834,-500.0,0.00013895,2]
[331778463,1720759866843,-500.0,0.00013895,2]
[331778464,1720759866853,-1008.86,0.00013895,2]
[331778465,1720759866863,-500.0,0.00013895,2]
[331778466,1720759866872,-1570.66,0.00013895,2]
[331778467,1720759866882,-189.13416687,0.00013895,2]
[331778468,1720759866892,-500.0,0.00013895,2]
[331778469,1720759866903,-500.0,0.00013895,2]
[331778470,1720759866912,-500.0,0.00013895,2]
[331778471,1720759866922,-500.0,0.00013895,2]
[331778472,1720759866932,-500.0,0.00013895,2]
[331778473,1720759866941,-500.0,0.00013895,2]
[331778474,1720759866951,-694.18,0.00013895,2]
[331778475,1720759866960,-500.0,0.00013895,2]
[331778476,1720759866970,-500.0,0.00013895,2]
[331778477,1720759866980,-500.0,0.00013895,2]
[331778478,1720759866989,-500.0,0.00013895,2]
[331778479,1720759866999,-544.06,0.00013895,2]
[331778480,1720759867008,-952.98,0.00013895,2]
[331778481,1720759867018,-500.0,0.00013895,2]
[331778482,1720759867028,-500.0,0.00013895,2]
[331778483,1720759867040,-1632.6,0.00013895,2]
[331778484,1720759867050,-687.38,0.00013895,2]
[331778485,1720759867060,-575.78,0.00013895,2]
[331778486,1720759867070,-500.0,0.00013895,2]
[331778487,1720759867079,-500.0,0.00013895,2]
[331778488,1720759867089,-500.0,0.00013895,2]
[331778489,1720759867099,-1194.22,0.00013895,2]
[331778490,1720759867109,-500.0,0.00013895,2]
[331778491,1720759867118,-584.44,0.00013895,2]
[331778492,1720759867128,-500.0,0.00013895,2]
[331778493,1720759867137,-338.71081518,0.00013895,2]
[331778494,1720759867147,-500.0,0.00013895,2]
[331778495,1720759867156,-713.59,0.00013895,2]
[331778496,1720759867169,-874.84,0.00013895,2]
[331778497,1720759867184,-500.0,0.00013895,2]
[331778498,1720759867198,-500.0,0.00013895,2]
[331778499,1720759867211,-222.54,0.00013895,2]
[331778500,1720759867224,-500.0,0.00013895,2]
[331778501,1720759867237,-500.0,0.00013895,2]
[331778502,1720759867250,-500.0,0.00013895,2]
[331778503,1720759867263,-522.59218055,0.00013895,2]
[331778504,1720759867277,-819.39,0.00013895,2]
[331778505,1720759867291,-500.0,0.00013895,2]
[331778506,1720759867303,-911.76,0.00013895,2]
[331778507,1720759867316,-500.0,0.00013895,2]
[331778508,1720759867330,-826.63,0.00013895,2]
[331778509,1720759867343,-500.0,0.00013895,2]
[331778510,1720759867355,-500.0,0.00013895,2]
[331778511,1720759867366,-841.01,0.00013895,2]
[331778512,1720759867378,-500.0,0.00013895,2]
[331778513,1720759867392,-500.0,0.00013895,2]
[331778514,1720759867406,-352.78,0.00013895,2]
[331778515,1720759867420,-500.0,0.00013895,2]
[331778516,1720759867434,-935.86,0.00013895,2]
[331778517,1720759867446,-500.0,0.00013895,2]
[331778518,1720759867457,-997.68,0.00013895,2]
[331778519,1720759867467,-775.47,0.00013895,2]
[331778520,1720759867480,-500.0,0.00013895,2]
[331778521,1720759867493,-500.0,0.00013895,2]
[331778522,1720759867506,-1045.08,0.00013895,2]
[331778523,1720759867519,-500.0,0.00013895,2]
[331778524,1720759867531,-500.0,0.00013895,2]
[331778525,1720759867544,-195.74,0.00013895,2]
[331778526,1720759867556,-1021.43,0.00013895,2]
[331778527,1720759867567,-942.89,0.00013895,2]
[331778528,1720759867577,-500.0,0.00013895,2]
[331778529,1720759867589,-500.0,0.00013895,2]
[331778530,1720759867601,-500.0,0.00013895,2]
[331778531,1720759867612,-501.64,0.00013895,2]
[331778532,1720759867624,-500.0,0.00013895,2]
[331778533,1720759867640,-500.0,0.00013895,2]
[331778534,1720759867653,-500.0,0.00013895,2]
[331778535,1720759867665,-500.0,0.00013895,2]
[331778536,1720759867678,-500.0,0.00013895,2]
[331778537,1720759867690,-774.56,0.00013895,2]
[331778538,1720759867701,-500.0,0.00013895,2]
[331778539,1720759867716,-500.0,0.00013895,2]
[331778540,1720759867728,-1214.73,0.00013895,2]
[331778541,1720759867739,-500.0,0.00013895,2]
[331778542,1720759867750,-500.0,0.00013895,2]
[331778543,1720759867762,-957.68,0.00013895,2]
[331778544,1720759867773,-517.36,0.00013895,2]
[331778545,1720759867785,-500.0,0.00013895,2]
[331778546,1720759867797,-500.0,0.00013895,2]
[331778547,1720759867808,-500.0,0.00013895,2]
[331778548,1720759867819,-500.0,0.00013895,2]
[331778549,1720759867831,-500.0,0.00013895,2]
[331778550,1720759867845,-500.0,0.00013895,2]
[331778551,1720759867857,-1680.2,0.00013895,2]
[331778552,1720759867868,-1197.24,0.00013895,2]
[331778553,1720759867880,-500.0,0.00013895,2]
[331778554,1720759867891,-500.0,0.00013895,2]
[331778555,1720759867903,-649.84,0.00013895,2]
[331778556,1720759867915,-500.0,0.00013895,2]
[331778557,1720759867927,-533.57,0.00013895,2]
[331778558,1720759867938,-573.88,0.00013895,2]
[331778559,1720759867953,-500.0,0.00013895,2]
[331778560,1720759867965,-316.92,0.00013895,2]
[331778561,1720759867977,-500.0,0.00013895,2]
[331778562,1720759867988,-500.0,0.00013895,2]
[331778563,1720759868000,-560.2,0.00013895,2]
[331778564,1720759868011,-786.8,0.00013895,2]
[331778565,1720759868023,-500.0,0.00013895,2]
[331778566,1720759868034,-500.0,0.00013895,2]
[331778567,1720759868046,-500.0,0.00013895,2]
[331778568,1720759868058,-500.0,0.00013895,2]
[331778569,1720759868069,-247.36965677,0.00013895,2]
[331778570,1720759868081,-500.0,0.00013895,2]
[331778571,1720759868092,-500.0,0.00013895,2]
[331778572,1720759868104,-500.0,0.00013895,2]
[331778573,1720759868115,-500.0,0.00013895,2]
[331778574,1720759868127,-500.0,0.00013895,2]
[331778575,1720759868139,-500.0,0.00013895,2]
[331778576,1720759868151,-500.0,0.00013895,2]
[331778577,1720759868162,-500.0,0.00013895,2]
[331778578,1720759868174,-1479.52,0.00013895,2]
[331778579,1720759868185,-500.0,0.00013895,2]
[331778580,1720759868197,-500.0,0.00013895,2]
[331778581,1720759868208,-500.0,0.00013895,2]
[331778582,1720759868220,-500.0,0.00013895,2]
[331778583,1720759868231,-526.67,0.00013895,2]
[331778584,1720759868243,-500.0,0.00013895,2]
[331778585,1720759868254,-500.0,0.00013895,2]
[331778586,1720759868266,-500.0,0.00013895,2]
[331778587,1720759868277,-500.0,0.00013895,2]
[331778588,1720759868289,-500.0,0.00013895,2]
[331778589,1720759868300,-500.0,0.00013895,2]
[331778590,1720759868311,-500.0,0.00013895,2]
[331778591,1720759868323,-1062.87,0.00013895,2]
[331778592,1720759868334,-500.0,0.00013895,2]
[331778593,1720759868345,-656.88,0.00013895,2]
[331778594,1720759868357,-622.8,0.00013895,2]
[331778595,1720759868368,-853.54,0.00013895,2]
[331778596,1720759868379,-500.0,0.00013895,2]
[331778597,1720759868391,-500.0,0.00013895,2]
[331778598,1720759868402,-500.0,0.00013895,2]
[331778599,1720759868413,-500.0,0.00013895,2]
[331778600,1720759868424,-632.18,0.00013895,2]
[331778601,1720759868436,-500.0,0.00013895,2]
[331778602,1720759868447,-581.33,0.00013895,2]
[331778603,1720759868459,-500.0,0.00013895,2]
[331778604,1720759868471,-500.0,0.00013895,2]
[331778605,1720759868482,-766.26,0.00013895,2]
[331778606,1720759868493,-500.0,0.00013895,2]
[331778607,1720759868505,-500.0,0.00013895,2]
[331778608,1720759868516,-500.0,0.00013895,2]
[331778609,1720759868528,-519.07,0.00013895,2]
[331778610,1720759868539,-500.0,0.00013895,2]
[331778611,1720759868550,-500.0,0.00013895,2]
[331778612,1720759868562,-617.16,0.00013895,2]
[331778613,1720759868573,-554.07,0.00013895,2]
[331778614,1720759868585,-500.0,0.00013895,2]
[331778615,1720759868596,-500.0,0.00013895,2]
[331778616,1720759868609,-500.0,0.00013895,2]
[331778617,1720759868620,-500.0,0.00013895,2]
[331778618,1720759868634,-500.0,0.00013895,2]
[331778619,1720759868646,-500.0,0.00013895,2]
[331778620,1720759868657,-500.0,0.00013895,2]
[331778621,1720759868669,-999.23,0.00013895,2]
[331778622,1720759868681,-500.0,0.00013895,2]
[331778623,1720759868693,-500.0,0.00013895,2]
[331778624,1720759868704,-500.0,0.00013895,2]
[331778625,1720759868716,-500.0,0.00013895,2]
[331778626,1720759868727,-500.0,0.00013895,2]
[331778627,1720759868738,-975.16,0.00013895,2]
[331778628,1720759868749,-500.0,0.00013895,2]
[331778629,1720759868761,-500.0,0.00013895,2]
[331778630,1720759868772,-500.0,0.00013895,2]
[331778631,1720759868784,-500.0,0.00013895,2]
[331778632,1720759868795,-500.0,0.00013895,2]
[331778633,1720759868807,-500.0,0.00013895,2]
[331778634,1720759868819,-500.0,0.00013895,2]
[331778635,1720759868831,-1482.0,0.00013895,2]
[331778636,1720759868842,-500.0,0.00013895,2]
[331778637,1720759868855,-500.0,0.00013895,2]
[331778638,1720759868867,-802.67,0.00013895,2]
[331778639,1720759868879,-989.49,0.00013895,2]
[331778640,1720759868893,-500.0,0.00013895,2]
[331778641,1720759868905,-500.0,0.00013895,2]
[331778642,1720759868917,-500.0,0.00013895,2]
[331778643,1720759868930,-500.0,0.00013895,2]
[331778644,1720759868943,-500.0,0.00013895,2]
[331778645,1720759868955,-500.0,0.00013895,2]
[331778646,1720759868966,-796.97,0.00013895,2]
[331778647,1720759868978,-863.09,0.00013895,2]
[331778648,1720759868991,-921.55,0.00013895,2]
[331778649,1720759869004,-500.0,0.00013895,2]
[331778650,1720759869016,-500.0,0.00013895,2]
[331778651,1720759869027,-1192.23,0.00013895,2]
[331778652,1720759869039,-587.86,0.00013895,2]
[331778653,1720759869052,-500.0,0.00013895,2]
[331778654,1720759869064,-500.0,0.00013895,2]
[331778655,1720759869075,-500.0,0.00013895,2]
[331778656,1720759869088,-500.0,0.00013895,2]
[331778657,1720759869100,-500.0,0.00013895,2]
[331778658,1720759869112,-500.0,0.00013895,2]
[331778659,1720759869125,-500.0,0.00013895,2]
[331778660,1720759869136,-519.66,0.00013895,2]
[331778661,1720759869147,-603.38,0.00013895,2]
[331778662,1720759869159,-667.16,0.00013895,2]
[331778663,1720759869176,-500.0,0.00013895,2]
[331778664,1720759869187,-681.77,0.00013895,2]
[331778665,1720759869198,-500.0,0.00013895,2]
[331778666,1720759869211,-893.69,0.00013895,2]
[331778667,1720759869224,-513.56,0.00013895,2]
[331778668,1720759869237,-500.0,0.00013895,2]
[331778669,1720759869249,-551.45016039,0.00013895,2]
[331778670,1720759869261,-500.0,0.00013895,2]
[331778671,1720759869273,-732.61,0.00013895,2]
[331778672,1720759869285,-500.0,0.00013895,2]
[331778673,1720759869296,-587.48,0.00013895,2]
[331778674,1720759869308,-1157.1,0.00013895,2]
[331778675,1720759869319,-500.0,0.00013895,2]
[331778676,1720759869331,-500.0,0.00013895,2]
[331778677,1720759869342,-700.55,0.00013895,2]
[331778678,1720759869354,-500.0,0.00013895,2]
[331778679,1720759869367,-616.76,0.00013895,2]
[331778680,1720759869379,-500.0,0.00013895,2]
[331778681,1720759869392,-500.0,0.00013895,2]
[331778682,1720759869404,-500.0,0.00013895,2]
[331778683,1720759869416,-500.0,0.00013895,2]
[331778684,1720759869428,-500.0,0.00013895,2]
[331778685,1720759869438,-2958.42,0.00013895,2]
[331778686,1720759869448,-500.0,0.00013895,2]
[331778687,1720759869458,-406.78,0.00013895,2]
[331778688,1720759869468,-599.99,0.00013895,2]
[331778689,1720759869478,-500.0,0.00013895,2]
[331778690,1720759869487,-503.21,0.00013895,2]
[331778691,1720759869497,-559.09,0.00013895,2]
[331778692,1720759869506,-500.0,0.00013895,2]
[331778693,1720759869516,-517.1,0.00013895,2]
[331778694,1720759869526,-500.0,0.00013895,2]
[331778695,1720759869535,-500.0,0.00013895,2]
[331778696,1720759869545,-500.0,0.00013895,2]
[331778697,1720759869554,-715.9,0.00013895,2]
[331778698,1720759869564,-327.74297929,0.00013895,2]
[331778699,1720759869574,-913.86,0.00013895,2]
[331778700,1720759869583,-525.8,0.00013895,2]
[331778701,1720759869593,-524.38,0.00013895,2]
[331778702,1720759869603,-500.0,0.00013895,2]
[331778703,1720759869612,-500.0,0.00013895,2]
[331778704,1720759869622,-500.0,0.00013895,2]
[331778705,1720759869636,-500.0,0.00013895,2]
[331778706,1720759869645,-765.74,0.00013895,2]
[331778707,1720759869655,-500.0,0.00013895,2]
[331778708,1720759869664,-500.0,0.00013895,2]
[331778709,1720759869675,-754.71,0.00013895,2]
[331778710,1720759869685,-500.0,0.00013895,2]
[331778711,1720759870068,-1002.75,0.00013895,2]
[331778712,1720759870092,-500.0,0.00013895,2]
[331778713,1720759870110,-500.0,0.00013895,2]
[331778714,1720759870130,-500.0,0.00013895,2]
[331778715,1720759870147,-500.0,0.00013895,2]
[331778716,1720759870157,-500.0,0.00013895,2]
[331778717,1720759870166,-748.43,0.00013895,2]
[331778718,1720759870176,-500.0,0.00013895,2]
[331778719,1720759870185,-500.0,0.00013895,2]
[331778720,1720759870195,-1681.96,0.00013895,2]
[331778721,1720759870204,-500.0,0.00013895,2]
[331778722,1720759870214,-897.98,0.00013895,2]
[331778723,1720759870223,-500.0,0.00013895,2]
[331778724,1720759870233,-802.22,0.00013895,2]
[331778725,1720759870242,-588.64,0.00013895,2]
[331778726,1720759870251,-500.0,0.00013895,2]
[331778727,1720759870261,-1539.17,0.00013895,2]
[331778728,1720759870270,-1228.81,0.00013895,2]
[331778729,1720759870280,-500.0,0.00013895,2]
[331778730,1720759870288,-1191.03,0.00013895,2]
[331778731,1720759870298,-500.0,0.00013895,2]
[331778732,1720759870311,-1172.28,0.00013895,2]
[331778733,1720759870320,-660.96,0.00013895,2]
[331778734,1720759870330,-500.0,0.00013895,2]
[331778735,1720759870339,-420.80921748,0.00013895,2]
[331778736,1720759870348,-500.0,0.00013895,2]
[331778737,1720759870358,-508.61,0.00013895,2]
[331778738,1720759870367,-576.27,0.00013895,2]
[331778739,1720759870377,-500.0,0.00013895,2]
[331778740,1720759870386,-500.0,0.00013895,2]
[331778741,1720759870395,-500.0,0.00013895,2]
[331778742,1720759870405,-883.15,0.00013895,2]
[331778743,1720759870415,-500.0,0.00013895,2]
[331778744,1720759870425,-500.0,0.00013895,2]
[331778745,1720759870434,-906.26,0.00013895,2]
[331778746,1720759870443,-500.0,0.00013895,2]
[331778747,1720759870456,-500.0,0.00013895,2]
[331778748,1720759870466,-500.0,0.00013895,2]
[331778749,1720759870475,-945.64,0.00013895,2]
[331778750,1720759870485,-644.93,0.00013895,2]
[331778751,1720759870494,-500.0,0.00013895,2]
[331778752,1720759870503,-937.38,0.00013895,2]
[331778753,1720759870513,-500.0,0.00013895,2]
[331778754,1720759870522,-500.0,0.00013895,2]
[331778755,1720759870531,-500.0,0.00013895,2]
[331778756,1720759870543,-500.0,0.00013895,2]
[331778757,1720759870552,-500.0,0.00013895,2]
[331778758,1720759870561,-1092.53,0.00013895,2]
[331778759,1720759870570,-500.0,0.00013895,2]
[331778760,1720759870580,-500.0,0.00013895,2]
[331778761,1720759870589,-1719.74,0.00013895,2]
[331778762,1720759870598,-500.0,0.00013895,2]
[331778763,1720759870608,-500.0,0.00013895,2]
[331778764,1720759870618,-1013.18,0.00013895,2]
[331778765,1720759870629,-615.14,0.00013895,2]
[331778766,1720759870640,-500.0,0.00013895,2]
[331778767,1720759870649,-1313.87,0.00013895,2]
[331778768,1720759870658,-500.0,0.00013895,2]
[331778769,1720759870668,-500.0,0.00013895,2]
[331778770,1720759870678,-500.0,0.00013895,2]
[331778771,1720759870687,-500.0,0.00013895,2]
[331778772,1720759870697,-500.0,0.00013895,2]
[331778773,1720759870708,-500.0,0.00013895,2]
[331778774,1720759870717,-500.0,0.00013895,2]
[331778775,1720759870728,-500.0,0.00013895,2]
[331778776,1720759870737,-500.0,0.00013895,2]
[331778777,1720759870746,-241.64,0.00013895,2]
[331778778,1720759870755,-500.0,0.00013895,2]
[331778779,1720759870766,-885.09,0.00013895,2]
[331778780,1720759870775,-500.0,0.00013895,2]
[331778781,1720759870784,-500.0,0.00013895,2]
[331778782,1720759870793,-500.0,0.00013895,2]
[331778783,1720759870802,-921.81,0.00013895,2]
[331778784,1720759870812,-500.0,0.00013895,2]
[331778785,1720759870821,-500.0,0.00013895,2]
[331778786,1720759870830,-585.94,0.00013895,2]
[331778787,1720759870839,-700.93,0.00013895,2]
[331778788,1720759870849,-500.0,0.00013895,2]
[331778789,1720759870858,-500.0,0.00013895,2]
[331778790,1720759870867,-500.0,0.00013895,2]
[331778791,1720759870877,-689.25,0.00013895,2]
[331778792,1720759870886,-500.0,0.00013895,2]
[331778793,1720759870895,-500.0,0.00013895,2]
[331778794,1720759870904,-500.0,0.00013895,2]
[331778795,1720759870914,-500.0,0.00013895,2]
[331778796,1720759870923,-617.94644437,0.00013895,2]
[331778797,1720759870932,-500.0,0.00013895,2]
[331778798,1720759870942,-500.0,0.00013895,2]
[331778799,1720759870951,-500.0,0.00013895,2]
[331778800,1720759870960,-500.0,0.00013895,2]
[331778801,1720759870969,-500.0,0.00013895,2]
[331778802,1720759870979,-500.0,0.00013895,2]
[331778803,1720759870988,-6351.49,0.00013895,2]
[331778804,1720759870997,-935.88,0.00013895,2]
[331778805,1720759871006,-500.0,0.00013895,2]
[331778806,1720759871016,-500.0,0.00013895,2]
[331778807,1720759871026,-827.8,0.00013895,2]
[331778808,1720759871035,-500.0,0.00013895,2]
[331778809,1720759871045,-879.73,0.00013895,2]
[331778810,1720759871054,-500.0,0.00013895,2]
[331778811,1720759871064,-500.0,0.00013895,2]